fUSD/lending_fUSD_20250611
["ID","MTS","AMOUNT","RATE_DAILY","PERIOD"]
[365377310,1749629831128,153.88,0.00013699,2]
[365377311,1749629912555,1333.0,0.00023746,120]
[365377312,1749629992761,6512.4542017,0.00024649,120]
[365377313,1749630026074,2155.606431,0.00024649,120]
[365377314,1749630183706,2020.0,0.000245,120]
[365377317,1749630443154,-201.0,0.00016264,2]
[365377318,1749630443176,-543.39,0.0001627,2]
[365377319,1749630443199,-171.36581424,0.00016541,2]
[365377320,1749630443220,-151.87,0.0001662,2]
[365377321,1749630443242,-300.65,0.00016621,2]
[365377322,1749630443263,-300.13,0.00016622,2]
[365377323,1749630443286,-300.03,0.00016625,2]
[365377324,1749630443308,-508.33,0.00016641,2]
[365377325,1749630443331,-494.47,0.00016641,2]
[365377326,1749630443353,-506.02,0.00016641,2]
[365377327,1749630443375,-303.35,0.00016645,2]
[365377328,1749630443396,-112.02135755,0.00016654,2]
[365377329,1749630453618,-190.86864245,0.00016654,2]
[365377330,1749630453644,-1200.0,0.00016692,2]
[365377331,1749630453669,-54.35339823,0.00016692,2]
[365377336,1749630510525,150.0,0.00020445,120]
[365377338,1749630554877,1291.0,0.0002465,120]
[365377339,1749630555756,1537.0,0.0002465,120]
[365377340,1749630558124,-500.0,0.00016164,2]
[365377341,1749630558146,-478.67439908,0.00016164,2]
[365377342,1749630570733,150.0,0.0002002,120]
[365377343,1749630596922,2121.0,0.00024658,120]
[365377344,1749630630771,150.0,0.00023899,120]
[365377351,1749630631674,-21.32560092,0.00016164,2]
[365377352,1749630631683,-151.0,0.00016491,2]
[365377353,1749630631692,-303.25,0.00016658,2]
[365377354,1749630631701,-304.86,0.00016658,2]
[365377355,1749630631710,-259.83949983,0.00016687,2]
[365377356,1749630631735,-42.36050017,0.00016687,2]
[365377357,1749630631745,-224.64660177,0.00016692,2]
[365377358,1749630631754,-304.42,0.00016692,2]
[365377359,1749630631763,-498.27,0.00016693,2]
[365377360,1749630631773,-476.041052,0.00016693,2]
[365377361,1749630631791,-23.668948,0.00016693,2]
[365377362,1749630631800,-455.44963013,0.00016723,2]
[365377363,1749630631815,-36.50036987,0.00016723,2]
[365377364,1749630631825,-500.19,0.00016723,2]
[365377365,1749630631834,-301.72,0.00016791,2]
[365377366,1749630631843,-201.0,0.00016946,2]
[365377367,1749630631852,-575.0,0.00017132,2]
[365377368,1749630631862,-502.2,0.00017133,2]
[365377369,1749630631870,-504.36,0.00017133,2]
[365377370,1749630631879,-300.23,0.00017477,2]
[365377371,1749630631888,-2250.809226,0.0001781,2]
[365377372,1749630631897,-151.71,0.00018,2]
[365377373,1749630631906,-150.0,0.00018057,7]
[365377374,1749630631915,-211.43,0.000181,2]
[365377375,1749630631924,-534.36,0.00018141,2]
[365377376,1749630631936,-666.0,0.00018208,2]
[365377377,1749630631946,-2178.9757433,0.00018238,2]
[365377380,1749630631983,-456.77248618,0.00018238,2]
[365377388,1749630632050,-1668.52177052,0.00018238,2]
[365377389,1749630632059,-674.0,0.00018286,2]
[365377390,1749630632068,-250.0,0.00018323,2]
[365377391,1749630632077,-816.83685451,0.00018376,2]
[365377392,1749630632088,-1006.16314549,0.00018376,2]
[365377393,1749630632096,-1205.0,0.00018466,2]
[365377394,1749630632105,-543.39,0.00018534,2]
[365377395,1749630632114,-150.41,0.00018536,2]
[365377396,1749630632123,-379.43685451,0.00018536,2]
[365377397,1749630632134,-470.56314549,0.00018536,2]
[365377398,1749630632143,-165.55,0.00018574,2]
[365377399,1749630632152,-171.46010802,0.00018668,4]
[365377404,1749630637605,-29.53989198,0.00018668,4]
[365377405,1749630637617,-500.0,0.00018904,2]
[365377406,1749630637629,-500.0,0.00018904,2]
[365377407,1749630637640,-27.46010802,0.00018943,2]
[365377408,1749630637767,-733.64391611,0.00018943,2]
[365377409,1749630637782,-238.89597587,0.00018943,2]
[365377410,1749630637794,-151.0,0.00018999,2]
[365377411,1749630637805,-207.4,0.00018999,2]
[365377412,1749630637817,-250.0,0.00019,2]
[365377413,1749630637828,-503.69,0.00019189,2]
[365377414,1749630637841,-500.14,0.00019189,2]
[365377415,1749630637852,-504.03,0.00019189,2]
[365377416,1749630637863,-493.27,0.000192,2]
[365377417,1749630637875,-497.34,0.000192,2]
[365377418,1749630637887,-304.93,0.000192,2]
[365377419,1749630637899,-506.5,0.000192,2]
[365377420,1749630637910,-507.4,0.000192,2]
[365377421,1749630637922,-300.04,0.000192,2]
[365377423,1749630637933,-494.39,0.000192,2]
[365377425,1749630637945,-506.83,0.000192,2]
[365377426,1749630637958,-497.54,0.000193,2]
[365377427,1749630637969,-300.19,0.000193,2]
[365377428,1749630637980,-500.76,0.000193,2]
[365377430,1749630637991,-494.25,0.000193,2]
[365377432,1749630638003,-495.96,0.000193,2]
[365377433,1749630638014,-302.22,0.000193,2]
[365377434,1749630638026,-150.0,0.000194,2]
[365377436,1749630638039,-150.0,0.000194,2]
[365377437,1749630638051,-499.01,0.000194,2]
[365377438,1749630638062,-505.75,0.000194,2]
[365377439,1749630638073,-305.36,0.000194,2]
[365377440,1749630638087,-494.53,0.000194,2]
[365377442,1749630638098,-301.48,0.000194,2]
[365377444,1749630638109,-506.38,0.000194,2]
[365377446,1749630638119,-494.24,0.000194,2]
[365377448,1749630638128,-496.51,0.000194,2]
[365377450,1749630638137,-490.17,0.000194,2]
[365377452,1749630638146,-304.62,0.000194,2]
[365377486,1749630638448,-495.9,0.000194,2]
[365377491,1749630638481,-506.52,0.000194,2]
[365377493,1749630638497,-303.99,0.000194,2]
[365377495,1749630638506,-508.9,0.000194,2]
[365377497,1749630638515,-494.56,0.000194,2]
[365377499,1749630638525,-150.0,0.00019427,2]
[365377501,1749630638535,-150.0,0.00019427,2]
[365377504,1749630638545,-200.0,0.00019455,2]
[365377506,1749630638555,-200.0,0.00019455,2]
[365377508,1749630638564,-493.15,0.00019522,2]
[365377509,1749630638574,-5946.18,0.000197,2]
[365377511,1749630638584,-24526.42142527,0.000197,2]
[365377514,1749630638596,-399.1970045,0.000197,2]
[365377568,1749630639954,-335.96365045,0.0001907,2]
[365377569,1749630640035,-497.33543987,0.0001907,2]
[365377570,1749630640047,-28504.0,0.000197,2]
[365377571,1749630640056,-150.0,0.00019798,2]
[365377572,1749630640066,-217.7565683,0.00019809,2]
[365377573,1749630640075,-203.07685357,0.00019809,2]
[365377574,1749630640087,-269.95731263,0.00019809,2]
[365377575,1749630640097,-182.24021869,0.00019809,2]
[365377576,1749630640106,-25399.21285462,0.0001981,2]
[365377577,1749630640116,-281.623,0.00019829,2]
[365377578,1749630640125,-500.0,0.0001984,2]
[365377579,1749630640134,-699.7508818,0.0001987,2]
[365377580,1749630640146,-699.75088173,0.00019873,2]
[365377581,1749630640155,-699.75088173,0.00019877,2]
[365377582,1749630640165,-699.75088173,0.0001988,2]
[365377583,1749630640174,-699.75088173,0.00019883,2]
[365377584,1749630640185,-163.73430845,0.00019886,2]
[365377585,1749630640194,-699.75088173,0.00019887,2]
[365377586,1749630640203,-160.99851794,0.00019889,2]
[365377587,1749630640213,-781.97297889,0.00019896,2]
[365377588,1749630640222,-781.97297886,0.00019896,2]
[365377589,1749630640232,-781.97297886,0.00019897,2]
[365377590,1749630640241,-9808.5813,0.000199,2]
[365377591,1749630640250,-160.83468592,0.000199,2]
[365377592,1749630640259,-1275.70845675,0.000199,2]
[365377593,1749630640268,-872.69,0.0001997,2]
[365377594,1749630640278,-500.05755497,0.00019973,2]
[365377595,1749630640287,-500.0,0.00019973,2]
[365377596,1749630640296,-502.27276169,0.00019973,2]
[365377597,1749630640305,-500.0,0.00019973,2]
[365377598,1749630640315,-872.69,0.00019976,2]
[365377599,1749630640324,-60003.09522916,0.0001998,2]
[365377600,1749630640333,-872.69,0.0001998,2]
[365377601,1749630640344,-872.69,0.0001998,2]
[365377602,1749630640353,-12047.2277041,0.00019986,2]
[365377603,1749630640363,-10057.1786565,0.00019986,2]
[365377604,1749630640372,-8067.129609,0.00019986,2]
[365377605,1749630640381,-6077.0805614,0.00019986,2]
[365377606,1749630640391,-4087.0315138,0.00019986,2]
[365377607,1749630640400,-2349.333,0.00019989,2]
[365377608,1749630640409,-2446.366,0.00019989,2]
[365377609,1749630640419,-155.0,0.00019989,2]
[365377610,1749630640428,-872.69,0.0001999,2]
[365377611,1749630640437,-179.0,0.0001999,2]
[365377612,1749630640447,-179.0,0.0001999,2]
[365377613,1749630640456,-83171.42583828,0.0001999,2]
[365377614,1749630640465,-14037.2767516,0.00019996,2]
[365377615,1749630640475,-500.0,0.00019999,2]
[365377616,1749630640485,-150.0,0.00019999,2]
[365377617,1749630640495,-155.62,0.00019999,2]
[365377618,1749630640504,-608.0,0.0002,2]
[365377619,1749630640514,-221517.09310857,0.0002,3]
[365377628,1749630642722,-699.75088173,0.0001989,2]
[365377629,1749630642731,-1220.24911827,0.0002,3]
[365377630,1749630643035,-752.34102109,0.0002,3]
[365377631,1749630643093,-114888.09921077,0.0002,3]
[365377632,1749630643102,-5717.88243725,0.0002,3]
[365377633,1749630643111,-833.29909032,0.0002,3]
[365377634,1749630643120,-558031.8619144,0.0002,2]
[365377639,1749630645723,-781.97297886,0.00019897,2]
[365377640,1749630645733,-1701.53756369,0.000199,2]
[365377641,1749630645742,-541.0,0.0002,2]
[365377642,1749630645752,-15912.12945745,0.0002,2]
[365377643,1749630645764,-962.5454,0.0002,2]
[365377644,1749630645809,-225805.99065264,0.0002,2]
[365377645,1749630645820,-4187.63383345,0.0002,2]
[365377646,1749630645910,-1689.1516018,0.0002,2]
[365377654,1749630690098,350.0,0.00024657,120]
[365377655,1749630694366,1333.0,0.00024074,120]
[365377656,1749630828059,-162.371147,0.00016064,2]
[365377657,1749630831227,153.88,0.00013699,2]
[365377659,1749630852461,202.0,0.00015946,2]
[365377660,1749630870680,150.0,0.00022378,120]
[365377661,1749630906885,313.17987127,0.00024658,120]
[365377662,1749630908380,165.3543881,0.00024658,120]
[365377663,1749631252931,462.0,0.0002465,120]
[365377664,1749631255622,277.0,0.0002465,120]
[365377665,1749631256414,575.0,0.0002465,120]
[365377666,1749631307639,796.0,0.0002465,120]
[365377667,1749631308430,694.0,0.0002465,120]
[365377668,1749631311812,304.0,0.0002465,120]
[365377669,1749631312608,560.0,0.0002465,120]
[365377670,1749631373724,1994.0,0.0002465,120]
[365377671,1749631374534,1050.89204194,0.0002465,120]
[365377672,1749631376768,576.0,0.0002465,120]
[365377673,1749631377551,702.0,0.0002465,120]
[365377674,1749631470742,150.0,0.00024367,120]
[365377675,1749631475749,1333.0,0.00024406,120]
[365377676,1749631571743,202.0,0.00015708,2]
[365377677,1749631626308,-500.0,0.00016164,2]
[365377678,1749631626333,-121.66963619,0.00016164,2]
[365377679,1749631629141,-378.33036381,0.00016164,2]
[365377680,1749631629165,-561.07,0.00017037,2]
[365377681,1749631629189,-202.0,0.0001748,4]
[365377682,1749631629211,-300.0,0.0001778,2]
[365377683,1749631629233,-150.0,0.00018721,7]
[365377684,1749631629254,-250.0,0.00018738,2]
[365377685,1749631629276,-267.18,0.00018762,2]
[365377686,1749631629299,-231.14,0.00018859,2]
[365377687,1749631629320,-500.0,0.00018904,2]
[365377688,1749631629342,-430.78130045,0.00018904,2]
[365377689,1749631629362,-666.0,0.0001895,2]
[365377690,1749631629385,-1000.0,0.00018964,2]
[365377691,1749631629410,-202.0,0.00019252,6]
[365377692,1749631629431,-142.15317883,0.00019301,2]
[365377693,1749631636096,-418.91682117,0.00019301,2]
[365377694,1749631636117,-281.0,0.00019401,2]
[365377695,1749631636136,-332.0,0.00019401,2]
[365377696,1749631636392,-471.14503987,0.00019415,2]
[365377697,1749631670627,1490.83685451,0.0002465,120]
[365377698,1749631672651,231.343233,0.0002465,120]
[365377699,1749631742550,1050.38343422,0.0002465,120]
[365377700,1749631784073,3135.70460265,0.0002465,120]
[365377719,1749631831884,-300.0,0.00016684,2]
[365377721,1749631831894,-999.82981356,0.00016684,2]
[365377726,1749631831938,-200.17018644,0.00016684,2]
[365377728,1749631831947,-300.0,0.00016684,2]
[365377730,1749631831957,-302.22,0.00016684,2]
[365377732,1749631831966,-506.66,0.00016685,2]
[365377734,1749631831976,-190.94981356,0.00016685,2]
[365377736,1749631831992,-313.75018644,0.00016685,2]
[365377739,1749631832002,-490.57,0.00016685,2]
[365377740,1749631832012,-303.72,0.00016685,2]
[365377742,1749631832021,-492.8,0.00016685,2]
[365377744,1749631832031,-493.59,0.00016685,2]
[365377745,1749631832040,-304.37,0.00016685,2]
[365377746,1749631832049,-500.52,0.00016685,2]
[365377747,1749631832060,-491.29,0.00016685,2]
[365377748,1749631832069,-505.58,0.00016685,2]
[365377749,1749631832079,-304.74,0.00016685,2]
[365377750,1749631832089,-502.29,0.00016685,2]
[365377751,1749631832098,-495.58,0.00016685,2]
[365377752,1749631832107,-303.01,0.00016685,2]
[365377753,1749631832117,-493.96,0.00016685,2]
[365377754,1749631832129,-506.75,0.00016685,2]
[365377755,1749631832139,-490.71,0.00016685,2]
[365377756,1749631832149,-303.86,0.00016685,2]
[365377757,1749631832159,-499.86,0.00016685,2]
[365377758,1749631832169,-378.53924032,0.00016685,2]
[365377759,1749631832199,-119.50075968,0.00016685,2]
[365377760,1749631832209,-304.13,0.00016685,2]
[365377761,1749631832218,-493.2,0.00016685,2]
[365377762,1749631832228,-498.24,0.00016685,2]
[365377763,1749631832237,-494.76,0.00016685,2]
[365377764,1749631832247,-304.99,0.00016685,2]
[365377765,1749631832260,-26.67294157,0.00016685,2]
[365377766,1749631832272,-471.70705843,0.00016685,2]
[365377767,1749631832281,-500.29,0.00016685,2]
[365377768,1749631832290,-493.57,0.00016685,2]
[365377769,1749631832300,-301.38,0.00016685,2]
[365377770,1749631832309,-506.46,0.00016685,2]
[365377772,1749631832319,-493.26,0.00016685,2]
[365377774,1749631832329,-499.44,0.00016685,2]
[365377775,1749631832339,-303.31,0.00016685,2]
[365377776,1749631832351,-494.98,0.00016685,2]
[365377777,1749631832360,-491.93,0.00016685,2]
[365377778,1749631832370,-305.59,0.00016685,2]
[365377779,1749631832380,-495.61,0.00016685,2]
[365377780,1749631832390,-498.5,0.00016685,2]
[365377781,1749631832400,-502.16,0.00016685,2]
[365377782,1749631832409,-305.88,0.00016685,2]
[365377783,1749631832418,-507.68,0.00016685,2]
[365377784,1749631832428,-499.59,0.00016685,2]
[365377785,1749631832438,-729.0,0.0001832,2]
[365377786,1749631832447,-227.26134425,0.000189,2]
[365377787,1749631832457,-207.4,0.00018999,2]
[365377788,1749631832466,-250.0,0.00019,2]
[365377789,1749631832475,-227.26134422,0.00019067,2]
[365377790,1749631832484,-227.26134422,0.00019233,2]
[365377791,1749631832493,-227.26134422,0.000194,2]
[365377792,1749631832502,-151.72,0.00019416,2]
[365377793,1749631832511,-287.0,0.00019416,2]
[365377794,1749631832520,-312.0,0.00019496,2]
[365377795,1749631832530,-300.0,0.00019498,2]
[365377796,1749631832539,-271.0,0.00019512,2]
[365377797,1749631832549,-227.26134422,0.00019567,2]
[365377798,1749631832558,-833.29909032,0.0001966,2]
[365377799,1749631832567,-227.26134422,0.00019733,2]
[365377800,1749631832576,-151.0,0.00019788,2]
[365377801,1749631832587,-15314.91918527,0.000198,2]
[365377802,1749631832627,-400.0,0.000198,2]
[365377804,1749631837795,-300.3,0.00016684,2]
[365377805,1749631837805,-161.22625384,0.000198,2]
[365377806,1749631837818,-796.46579909,0.000198,2]
[365377807,1749631837829,-413.34256863,0.000198,2]
[365377808,1749631837843,-599.04431229,0.000198,2]
[365377809,1749631837954,-874.25125942,0.000198,2]
[365377810,1749631838060,-707.19578163,0.000198,2]
[365378110,1749631841159,-12144.31483983,0.000198,2]
[365378112,1749631841169,-629.7757936,0.000198,2]
[365378114,1749631841179,-217.7565683,0.00019809,2]
[365378117,1749631841189,-203.07685357,0.00019809,2]
[365378119,1749631841199,-182.24021869,0.00019809,2]
[365378121,1749631841208,-269.95731263,0.00019809,2]
[365378123,1749631841217,-37515.57213007,0.0001981,2]
[365378125,1749631841226,-1050.73565,0.0001981,2]
[365378127,1749631841237,-25399.21285462,0.0001981,2]
[365378129,1749631841246,-629.77579356,0.00019811,2]
[365378131,1749631841256,-629.77579356,0.00019822,2]
[365378133,1749631841266,-629.77579356,0.00019833,2]
[365378135,1749631841275,-500.0,0.00019839,2]
[365378137,1749631841285,-500.0,0.0001984,2]
[365378138,1749631841294,-629.77579356,0.00019844,2]
[365378140,1749631841304,-629.77579356,0.00019856,2]
[365378142,1749631841313,-629.77579356,0.00019867,2]
[365378144,1749631841323,-629.77579356,0.00019878,2]
[365378147,1749631841332,-163.73430845,0.00019886,2]
[365378148,1749631841343,-160.99851794,0.00019886,2]
[365378151,1749631841355,-629.77579356,0.00019889,2]
[365378152,1749631841364,-281.623,0.0001989,2]
[365378154,1749631841374,-872.69,0.0001989,2]
[365378157,1749631841384,-490.7,0.00019893,2]
[365378159,1749631841393,-300.29,0.00019893,2]
[365378160,1749631841403,-504.99,0.00019893,2]
[365378163,1749631841412,-500.75,0.00019893,2]
[365378165,1749631841422,-509.75,0.00019893,2]
[365378166,1749631841431,-302.1,0.00019893,2]
[365378169,1749631841441,-504.48,0.00019893,2]
[365378171,1749631841450,-506.97,0.00019897,2]
[365378172,1749631841459,-490.82,0.00019897,2]
[365378174,1749631841468,-9808.5813,0.000199,2]
[365378176,1749631841477,-13402.43477722,0.000199,2]
[365378178,1749631841486,-160.83468592,0.000199,2]
[365378180,1749631841495,-28248.10373835,0.000199,2]
[365378182,1749631841504,-7037.75680977,0.000199,2]
[365378184,1749631841514,-179.0,0.000199,2]
[365378186,1749631841523,-179.0,0.000199,3]
[365378188,1749631841532,-179.0,0.000199,4]
[365378190,1749631841543,-192.0,0.000199,2]
[365378192,1749631841553,-629.77579356,0.000199,2]
[365378194,1749631841562,-227.26134422,0.000199,2]
[365378196,1749631841571,-40473.61185842,0.000199,2]
[365378199,1749631841580,-1275.70845675,0.000199,2]
[365378200,1749631841593,-5562.0,0.000199,3]
[365378202,1749631841602,-872.69,0.0001997,2]
[365378204,1749631841618,-872.69,0.0001997,2]
[365378206,1749631841639,-500.05755497,0.00019973,2]
[365378208,1749631841648,-502.27276169,0.00019973,2]
[365378210,1749631841657,-500.0,0.00019973,2]
[365378212,1749631841667,-500.0,0.00019973,2]
[365378214,1749631841677,-500.0,0.00019973,2]
[365378216,1749631841696,-197.40331613,0.00019973,2]
[365378218,1749631841717,-872.69,0.00019976,2]
[365378220,1749631841728,-60003.09522916,0.0001998,2]
[365378222,1749631841738,-9277.4709149,0.00019986,2]
[365378224,1749631841747,-9133.9263935,0.00019986,2]
[365378226,1749631841756,-8990.381872,0.00019986,2]
[365378228,1749631841766,-8846.8373505,0.00019986,2]
[365378230,1749631841775,-8703.2928291,0.00019986,2]
[365378232,1749631841787,-2349.333,0.00019989,2]
[365378234,1749631841797,-155.0,0.00019989,2]
[365378236,1749631841807,-2446.366,0.00019989,2]
[365378238,1749631841816,-872.69,0.0001999,2]
[365378240,1749631841826,-196.64,0.0001999,5]
[365378242,1749631841835,-9421.0154364,0.00019996,2]
[365378244,1749631841846,-155.62,0.00019999,2]
[365378247,1749631841856,-500.0,0.00019999,2]
[365378248,1749631841865,-150.0,0.00019999,2]
[365378251,1749631841875,-496.5,0.0002,2]
[365378252,1749631841885,-555.0,0.0002,2]
[365378255,1749631841894,-153104.00077426,0.0002,3]
[365378257,1749631841907,-341.39824992,0.0002,3]
[365378351,1749631842840,-126502.03875945,0.0002,3]
[365378353,1749631842850,-2858.94121862,0.0002,3]
[365378355,1749631842860,-200987.14745034,0.0002,2]
[365378365,1749631842945,-438.25615611,0.0002,2]
[365378388,1749631843155,-578274.30102399,0.0002,2]
[365378390,1749631843167,-1092323.80975113,0.0002,2]
[365378393,1749631843178,-554.55400001,0.0002,2]
[365378395,1749631843191,-85598.68103984,0.0002,2]
[365378653,1749631845770,-616.0,0.0002,2]
[365378657,1749631845823,-299.73565,0.0002,2]
[365378663,1749631845878,-35622.41924294,0.0002,2]
[365378668,1749631845933,-8985.29081776,0.0002,2]
[365378678,1749631846040,-376.20533223,0.0002,2]
[365378726,1749631950528,150.0,0.00020355,120]
[365378728,1749631977422,165.43,0.00013699,2]
[365378729,1749632084906,1661.0,0.0002,30]
[365378731,1749632130764,150.0,0.00021852,120]
[365378733,1749632490740,150.0,0.00024066,120]
[365378736,1749632650848,500.0,0.00024657,120]
[365378737,1749632660173,500.0,0.00024657,120]
[365378738,1749632668355,500.0,0.00024657,120]
[365378740,1749632686894,568.0,0.00024657,120]
[365378741,1749632714379,700.0,0.00024657,120]
[365378742,1749632724094,500.0,0.00024649,120]
[365378743,1749632754115,2323.24720859,0.00024657,120]
[365378744,1749632846176,-391.92605875,0.00016164,2]
[365378745,1749632847124,-120.22382449,0.00016164,2]
[365378746,1749632847145,-500.0,0.00016164,2]
[365378747,1749632847166,-600.0,0.00016164,4]
[365378748,1749632847187,-171.13119888,0.00016164,2]
[365378749,1749632847207,-178.39859639,0.00016383,2]
[365378750,1749632847229,-600.0,0.00016421,4]
[365378751,1749632847252,-600.0,0.00016483,4]
[365378752,1749632847272,-152.481,0.00016578,2]
[365378753,1749632847293,-1200.0,0.00017192,2]
[365378754,1749632847312,-300.0,0.00017192,2]
[365378755,1749632847332,-280.73063777,0.00017192,2]
[365378756,1749632850097,-19.26936223,0.00017192,2]
[365378757,1749632850118,-503.73,0.00017193,2]
[365378758,1749632850139,-495.11,0.00017193,2]
[365378759,1749632850160,-56.4530872,0.00017193,2]
[365378769,1749633031991,-463.16592224,0.00016164,2]
[365378771,1749633032002,-36.83407776,0.00017023,2]
[365378777,1749633032046,-165.16592224,0.00017023,2]
[365378778,1749633032056,-234.83407776,0.00017192,2]
[365378779,1749633032208,-294.16592224,0.00017192,2]
[365378780,1749633032221,-1200.0,0.00017192,2]
[365378781,1749633032230,-300.0,0.00017192,2]
[365378782,1749633032239,-77.28943155,0.00017192,2]
[365378783,1749633032252,-227.27056845,0.00017192,2]
[365378784,1749633032261,-305.65,0.00017192,2]
[365378785,1749633032270,-302.52,0.00017192,2]
[365378786,1749633032281,-248.6869128,0.00017193,2]
[365378787,1749633032290,-492.14,0.00017193,2]
[365378788,1749633032299,-503.89,0.00017193,2]
[365378789,1749633032308,-494.37,0.00017193,2]
[365378790,1749633032319,-302.37,0.00017193,2]
[365378791,1749633032328,-499.21,0.00017193,2]
[365378792,1749633032337,-503.9,0.00017193,2]
[365378793,1749633032347,-490.37,0.00017193,2]
[365378794,1749633032356,-303.92,0.00017193,2]
[365378795,1749633032365,-499.27,0.00017193,2]
[365378796,1749633032374,-509.73,0.00017193,2]
[365378797,1749633032383,-502.44,0.00017193,2]
[365378798,1749633032392,-304.04,0.00017193,2]
[365378799,1749633032401,-496.75,0.00017193,2]
[365378800,1749633032411,-349.73539346,0.00017193,2]
[365378801,1749633032422,-154.00460654,0.00017193,2]
[365378802,1749633032431,-303.0,0.00017193,2]
[365378803,1749633032440,-302.45,0.00017193,2]
[365378804,1749633032450,-300.33,0.00017193,2]
[365378805,1749633032459,-305.38,0.00017193,2]
[365378806,1749633032468,-600.0,0.00017193,4]
[365378807,1749633032477,-114.72912037,0.00017193,2]
[365378808,1749633032489,-190.15087963,0.00017193,2]
[365378809,1749633032498,-272.47663379,0.00017193,2]
[365378810,1749633032539,-227.39336621,0.00017193,2]
[365378811,1749633032549,-494.65,0.00017193,2]
[365378812,1749633032559,-508.01,0.00017193,2]
[365378813,1749633032568,-303.49,0.00017193,2]
[365378814,1749633032578,-498.24,0.00017193,2]
[365378815,1749633032587,-123.32792966,0.00017193,2]
[365378827,1749633037954,-282.28007228,0.00017193,2]
[365378828,1749633037966,-84.89199806,0.00017193,2]
[365378829,1749633037976,-300.2,0.00017193,2]
[365378830,1749633037985,-12.11923804,0.00017193,2]
[365378871,1749633038998,1333.0,0.0002375,120]
[365378997,1749633040180,-491.09076196,0.00017193,2]
[365378999,1749633040190,-498.39,0.00017193,2]
[365379001,1749633040200,-425.05217984,0.00017193,2]
[365379005,1749633040238,-76.36782016,0.00017193,2]
[365379007,1749633040247,-600.0,0.00017234,4]
[365379009,1749633040257,-508.86,0.00017254,2]
[365379011,1749633040267,-303.27,0.00017261,2]
[365379013,1749633040276,-302.98,0.00017261,2]
[365379015,1749633040286,-13.52217974,0.0001727,2]
[365379020,1749633040322,-484.51782026,0.0001727,2]
[365379022,1749633040346,-500.25,0.0001727,2]
[365379024,1749633040368,-509.35,0.0001727,2]
[365379026,1749633040378,-506.5,0.0001727,2]
[365379028,1749633040388,-500.0,0.00017292,2]
[365379030,1749633040398,-500.0,0.00017292,2]
[365379032,1749633040407,-500.0,0.00017292,2]
[365379034,1749633040417,-330.93251753,0.00017292,2]
[365379036,1749633040426,-345.02035947,0.00017292,2]
[365379038,1749633040436,-500.0,0.00017292,2]
[365379040,1749633040445,-500.0,0.00017292,2]
[365379042,1749633040454,-500.0,0.00017292,2]
[365379044,1749633040463,-500.0,0.00017292,2]
[365379046,1749633040473,-500.0,0.00017292,2]
[365379048,1749633040482,-449.1198172,0.00017292,2]
[365379050,1749633040491,-500.0,0.00017292,2]
[365379052,1749633040501,-172.4837104,0.00017292,2]
[365379054,1749633040510,-302.43,0.00017293,2]
[365379056,1749633040520,-498.32,0.00017293,2]
[365379058,1749633040529,-507.21,0.00017293,2]
[365379060,1749633040538,-508.1,0.00017293,2]
[365379062,1749633040547,-495.97,0.00017293,2]
[365379064,1749633040557,-500.53,0.00017294,2]